Workbook

Sheet Erläuterungen (Fp)
A1: Fördernehmer*in: | B1: Name laut ZVR-Auszug/Firmenbuchauszug
A2: Fördervorhaben: | B2: Hier ist anzuführen, in welches Vorhaben/Projekt die Förderung fließen soll (z.B: Gesamttätigkeit 2023, Bildungstätigkeit, Projekt xxx).
A3: Förderart: | B3: Hier ist zwischen Gesamt- und Einzelförderung zu unterscheiden; Gesamtförderung - Eine Gesamtförderung/Basisförderung ist eine Förderung zur Deckung des gesamten oder aliquoten Teiles des nach Abzug allfälliger Einnahmen verbleibenden Fehlbetrages für die bestimmungsgemäße Tätigkeit (Gesamttätigkeit oder Teilbereichstätigkeit) der*des Förderwerber*in innerhalb eines im Fördervertrag bestimmten Zeitraumes; Einzelförderung - Ist eine Förderung für ein zeitlich abgegrenztes und sachlich bestimmtes Vorhaben (z.B. Förderung eines bestimmten Projekts).
A4: Erstansuchen: | B4: Auswahlfeld: Ja (für dieses Vorhaben wird erstmalig bei MA 13 angesucht) oder Nein (für dieses Vorhaben wird jährlich bei der MA 13 angesucht). Bei Erstansuchen (Auswahl: Ja) werden die Spalten "Ist 2021", "Plan/Ist 2022" im Finanzplan, sowie die Spalten "2022(Vorjahr)", "Vergleich 22/23" in der Personalübersicht (Fp) und die Spalte "Ist 2022" im Finanzbericht ausgeblendet.
A5: Begründung: | B5: Nachvollziehbare Begründungen sind in jenen Ausgaben- und Einnahmenfeldern anzuführen, in denen die Abweichung zum Plan/Ist-Wert 2022 über 2% UND EUR 1.000,-- liegt.
A6: PLAN/IST: | B6: Hier sind entweder durchgehend die Plan-Werte ODER Ist-Werte einzufügen. Sofern die Ist-Werte bereits vorliegen, wären diese den Plan-Werten vorzuziehen.
A7: Overheadkosten: | B7: Overhead bzw. Gemeinkosten (indirekte Kosten) sind jene Kosten, die nicht direkt einem Angebot/Projekt zugerechnet werden können. Dazu zählen z.B. Verwaltungspersonal und Sachkosten für zentralen Aufwand. Sollten für einzelne Positionen Berechnungsschlüssel vorliegen, können diese entsprechend aliquotiert den Overheadkosten zugerechnet werden. Dies gilt sowohl für Personal- als auch Sachkosten.
B8: Zu den Overheadkosten zählen: | C8: Sämtliche Sachkosten wie z.B. Mieten inkl. Technik und Reinigung bei zentralen Geschäftsstellen.
C9: Personalkosten für Geschäftsführung, Office Management, Buchhaltung, etc., sofern diese Personen nicht mit Zielgruppen arbeiten.
A10: Sachkosten: | B10: Hier können auch noch weitere Positionen hinzugefügt werden. Die Positionen müssen jedoch dem Österreichischen Kontenrahmen entsprechen. Um Kontinuität und Vergleichbarkeit bei den Anträgen und Abrechnungen gewährleisten zu können, ist auf eine einheitliche Zuordnung der Ausgaben zu den Kostenarten zu achten. So muss z.B. im Rahmen der Abrechnung auch gewährleistet werden können, dass bei den Finanzberichten eine einfache Vergleichbarkeit zu den Einzelkontennachweisen herzustellen ist.
A11: Personalkosten: | B11: Die detaillierten Personalkosten für die Jahre 2022 und 2023 sind in der Personalübersicht vollständig anzuführen (bei Bedarf ist es möglich, noch weitere Zeilen einzufügen). Die Summe der Overhead und angebots-/projektbezogenen Personalkosten in der Personalübersicht aus den Jahren 2022 und 2023 werden automatisch in den Finanzplan eingespeist. Bei dem Jahr 2021 müssen die Summen von Overhead und angebots-/projektbezogenen Personalkosten direkt im Finanzplan eingegeben werden.
A12: Abw. in %: | B12: Sollte bei einer Position gegenüber dem Vorjahr eine Abweichung von mindestens 2% UND EUR 1.000,-- vorliegen, ist eine nachvollziehbare Begründung anzuführen.
A13: Gesamterfordernis: | B13: NICHT BEFÜLLBAR, wird automatisch berechnet; Das Gesamterfordernis ergibt sich aus den geplanten Ausgaben abzüglich der geplanten Einnahmen. Die Differenz stellt den Förderbedarf des Vorhabens/Projekts bei der MA 13 dar.
A14: Förderwerber*in: | C14: Verein X
A15: Fördervorhaben: | C15: Bildungstätigkeit
A16: Förderart: | C16: Gesamtförderung
A17: Erstansuchen | C17: Nein
A18: Für das Jahr: | C18: 2023
C20: ="Ist "&C18-2 -> Ist 2021 | D20: ="Plan/Ist "&C18-1 -> Plan/Ist 2022 | E20: ="Plan "&C18 -> Plan 2023 | F20: Abw. in % | G20: ="Begründung (wenn Abweichung gegenüber Plan/Ist "&C18-1&" über 2% und EUR 1.000,-- ist)" -> Begründung (wenn Abweichung gegenüber Plan/Ist 2022 über 2% und EUR 1.000,-- ist)
B21: 1. Sachkosten
A22: Ausgaben | B22: Miete und Betriebskosten | C22: 6900 | D22: 6900 | E22: 12000 | F22: 73.91304348 | G22: Zusätzlicher Standort
B23: Gas/Strom/Heizung | C23: 5000 | D23: 4700 | E23: 5000 | F23: 6.382978723
B24: Telefon inkl. Onlinekosten | C24: 1800 | D24: 1800 | E24: 1900 | F24: 5.555555556
B25: Büromaterial | C25: 1600 | D25: 1600 | E25: 1500 | F25: -6.25
B26: Porto | C26: 50 | D26: 40 | E26: 30 | F26: =(E26-D26)/E26 -> -0.3333333333
B27: Pädagogische Erfordernisse | C27: 50 | D27: 40 | E27: 50 | F27: 25
B28: Kopier- und Druckkosten | C28: 150 | D28: 150 | E28: 150 | F28: 0
B29: Versicherungen, Leasingverträge | C29: 1700 | D29: 1700 | E29: 1700 | F29: 0
B30: Reparaturen, Instandhaltungen | C30: 4500 | D30: 4500 | E30: 10000 | F30: 122.2222222 | G30: Barrierefreie Sanitäranlagen
B31: Reinigung | C31: 1500 | D31: 1200 | E31: 1100 | F31: =(E31-D31)/E31 -> -0.09090909091
B32: Sonstiges Verbrauchsmaterial | C32: 500 | D32: 500 | E32: 500 | F32: 0
B33: Informationsmaterial/ Öffentlichkeitsarbeit | C33: 2200 | D33: 2800 | E33: 2800 | F33: 0
B34: Fachliteratur/Abos | C34: 300 | D34: 200 | E34: 200 | F34: 0
B35: Fahrt- und Reisekosten | C35: 2200 | D35: 2200 | E35: 2200 | F35: 0
B36: Weiterbildung | F36: -
B37: Beiträge, Gebühren, Bankspesen | C37: 1700 | D37: 1500 | E37: 1700 | F37: 13.33333333
B38: Honorare (Rechts- und Beratungskosten, Supervision, etc.) | C38: 10500 | D38: 12000 | E38: 12000 | F38: 0
B39: Geringwertige Wirtschaftsgüter (Investitionen bis zu EUR 1.000,--) | C39: 1700 | D39: 1700 | E39: 1700 | F39: 0
B40: Investitionen über EUR 1.000,-- | C40: 7200 | D40: 8000 | E40: 17000 | F40: 112.5 | G40: Zusätzliches Angebot inkl. neuer Standort
F42: =IF(OR(D42=0,E42=0),"-",E42/D42*100-100) -> - | G42: =IF(ISBLANK(E42),"",IF(AND(OR(F42>=2,F42<=-2),OR((D42-E42)>=100,(D42-E42)<=-100)),"Bitte Begründung in dieser Zelle angeben","")) -> 
F43: -
F44: -
B45: GESAMT | C45: =SUM(C22:C44) -> 49550 | D45: =SUM(D22:D44) -> 51530 | E45: =SUM(E22:E44) -> 71530 | F45: 38.81234232
B46: davon Overheadkosten | C46: 7000 | D46: 7500 | E46: 8000 | F46: 6.666666667
B47: Overheadkosten in % | C47: =C46*100/C45 -> 14.1271443 | D47: 14.55462837 | E47: =E46*100/E45 -> 11.18411855
G48: =IF(ISBLANK(E48),"",IF(AND(OR(F48>=2,F48<=-2),OR((D48-E48)>=1000,(D48-E48)<=-1000)),"Bitte Begründung in dieser Zelle angeben","")) -> 
B49: 2. Personalkosten
A50: Ausgaben | B50: Overhead | C50: 45000 | D50: 45000 | E50: 45000 | F50: =IF(OR(D50=0,E50=0),"-",E50/D50*100-100) -> 0 | G50: =IF(ISBLANK(E50),"",IF(AND(OR(F50>=2,F50<=-2),OR((D50-E50)>=100,(D50-E50)<=-100)),"Bitte Begründung in dieser Zelle angeben","")) -> 
B51: Angebot/Projekt | C51: 240000 | D51: 241000 | E51: 245000 | F51: =IF(OR(D51=0,E51=0),"-",E51/D51*100-100) -> 1.659751037
B52: GESAMT | C52: =SUM(C50:C51) -> 285000 | D52: 286000 | E52: =SUM(E50:E51) -> 290000 | F52: =IF(OR(D52=0,E52=0),"-",E52/D52*100-100) -> 1.398601399
B53: Overheadkosten in % | C53: =C50*100/C52 -> 15.78947368 | D53: 15.73426573 | E53: =E50*100/E52 -> 15.51724138 | F53: =IF(OR(D53=0,E53=0),"-",E53/D53*100-100) -> -1.379310345
B55: 3. Gesamtkosten
B56: Summe | C56: =C45+C52 -> 334550 | D56: =D45+D52 -> 337530 | E56: 361530 | F56: =IF(OR(D56=0,E56=0),"-",E56/D56*100-100) -> 7.110479069
B57: davon Overhead | C57: =C46+C50 -> 52000 | D57: 52500 | E57: =E46+E50 -> 53000 | F57: 0.9523809524 | G57: =IF(ISBLANK(E57),"",IF(AND(OR(F57>=2,F57<=-2),OR((D57-E57)>=100,(D57-E57)<=-100)),"Bitte Begründung in dieser Zelle angeben","")) -> 
B58: Overhead in % | C58: =C57*100/C56 -> 15.54326708 | D58: 15.55417296 | E58: =E57*100/E56 -> 14.65991757 | F58: -5.749295652
B61: 4. Einnahmen/Eigenmittel
A62: Einnahmen | B62: Eigene Einnahmen (Mitgliedsbeiträge, Unkostenbeiträge,…) | C62: 1180 | D62: 1200 | E62: 1200 | F62: =IF(OR(D62=0,E62=0),"-",E62/D62*100-100) -> 0 | G62: =IF(ISBLANK(E62),"",IF(AND(OR(F62>=2,F62<=-2),OR((D62-E62)>=100,(D62-E62)<=-100)),"Bitte Begründung in dieser Zelle angeben","")) -> 
B63: Spenden | F63: =IF(OR(D63=0,E63=0),"-",E63/D63*100-100) -> -
B64: Sponsoring | F64: -
B65: Auflösung Rücklagen/Rückstellungen | F65: -
F66: -
F67: -
B68: Summe | C68: =SUM(C62:C67) -> 1180 | D68: =SUM(D62:D67) -> 1200 | E68: =SUM(E62:E67) -> 1200 | F68: 0
B70: 5. Förderungen | H70: Status | I70: Hier ist der Status der jeweiligen Förderung im aktuellen Förderjahr anzuführen; Auswahlfeld: angesucht oder bewilligt
A71: Einnahmen | B71: EU | C71: 7500 | F71: =IF(OR(D71=0,E71=0),"-",E71/D71*100-100) -> - | G71: =IF(ISBLANK(E71),"",IF(AND(OR(F71>=2,F71<=-2),OR((D71-E71)>=100,(D71-E71)<=-100)),"Bitte Begründung in dieser Zelle angeben","")) ->  | H71: angesucht
B72: Bundesministerium, bitte jedes Ministerium einzeln anführen | F72: =IF(OR(D72=0,E72=0),"-",E72/D72*100-100) -> -
B73: Stadt Wien (OHNE MA 13) | F73: -
B74: Bezirk, bitte den jeweiligen Bezirk anführen | C74: 1500 | F74: - | H74: bewilligt
B75: Sonstige | F75: -
B76: Summe | C76: =SUM(C71:C75) -> 9000 | D76: =SUM(D71:D75) -> 0 | E76: 0 | F76: -
B78: 6. Gesamteinnahmen
B79: Summe | C79: =C68+C76 -> 10180 | D79: =D68+D76 -> 1200 | E79: =E68+E76 -> 1200 | F79: =IF(OR(D81=0,E81=0),"-",E81/D81*100-100) -> 7.13584872
B81: Gesamterfordernis | C81: =C56-C79 -> 324370 | D81: =D56-D79 -> 336330 | E81: =E56-E79 -> 360330 | F81: =IF(OR(D81=0,E81=0),"-",E81/D81*100-100) -> 7.13584872
C85: angesucht
C86: bewilligt
D94: Gesamtförderung
D95: Einzelförderung

Sheet Finanzplan
A1: Förderwerber*in:
A2: Fördervorhaben:
A3: Förderart:
A4: Erstansuchen | C4: Nein
A5: Für das Jahr: | C5: 2023
C7: ="Ist "&C5-2 -> Ist 2021 | D7: ="Plan/Ist "&C5-1 -> Plan/Ist 2022 | E7: ="Plan "&C5 -> Plan 2023 | F7: Abw. in % | G7: ="Begründung (wenn Abweichung gegenüber Plan/Ist "&C5-1&" über 2% und EUR 1.000,-- ist)" -> Begründung (wenn Abweichung gegenüber Plan/Ist 2022 über 2% und EUR 1.000,-- ist)
B8: 1. Sachkosten (Sk)
A9: Ausgaben | B9: Miete und Betriebskosten | F9: =IF(OR(D9=0,E9=0),"-",E9/D9*100-100) -> - | H9: =IF(ISBLANK(E9),"",IF(AND(OR(F9>=2,F9<=-2),OR((D9-E9)>=1000,(D9-E9)<=-1000)),IF(ISBLANK(G9),'|'!B$56,""),"")) -> 
B10: Gas/Strom/Heizung | F10: - | H10: =IF(ISBLANK(E10),"",IF(AND(OR(F10>=2,F10<=-2),OR((D10-E10)>=1000,(D10-E10)<=-1000)),IF(ISBLANK(G10),'|'!B$56,""),"")) -> 
B11: Telefon inkl. Onlinekosten | F11: - | H11: =IF(ISBLANK(E11),"",IF(AND(OR(F11>=2,F11<=-2),OR((D11-E11)>=1000,(D11-E11)<=-1000)),IF(ISBLANK(G11),'|'!B$56,""),"")) -> 
B12: Büromaterial | F12: - | H12: =IF(ISBLANK(E12),"",IF(AND(OR(F12>=2,F12<=-2),OR((D12-E12)>=1000,(D12-E12)<=-1000)),IF(ISBLANK(G12),'|'!B$56,""),"")) -> 
B13: Porto | F13: - | H13: =IF(ISBLANK(E13),"",IF(AND(OR(F13>=2,F13<=-2),OR((D13-E13)>=1000,(D13-E13)<=-1000)),IF(ISBLANK(G13),'|'!B$56,""),"")) -> 
B14: Pädagogische Erfordernisse | F14: - | H14: =IF(ISBLANK(E14),"",IF(AND(OR(F14>=2,F14<=-2),OR((D14-E14)>=1000,(D14-E14)<=-1000)),IF(ISBLANK(G14),'|'!B$56,""),"")) -> 
B15: Kopier- und Druckkosten | F15: - | H15: =IF(ISBLANK(E15),"",IF(AND(OR(F15>=2,F15<=-2),OR((D15-E15)>=1000,(D15-E15)<=-1000)),IF(ISBLANK(G15),'|'!B$56,""),"")) -> 
B16: Versicherungen, Leasingverträge | F16: =IF(OR(D16=0,E16=0),"-",E16/D16*100-100) -> - | H16: =IF(ISBLANK(E16),"",IF(AND(OR(F16>=2,F16<=-2),OR((D16-E16)>=1000,(D16-E16)<=-1000)),IF(ISBLANK(G16),'|'!B$56,""),"")) -> 
B17: Reparaturen, Instandhaltungen | F17: - | H17: =IF(ISBLANK(E17),"",IF(AND(OR(F17>=2,F17<=-2),OR((D17-E17)>=1000,(D17-E17)<=-1000)),IF(ISBLANK(G17),'|'!B$56,""),"")) -> 
B18: Reinigung | F18: - | H18: =IF(ISBLANK(E18),"",IF(AND(OR(F18>=2,F18<=-2),OR((D18-E18)>=1000,(D18-E18)<=-1000)),IF(ISBLANK(G18),'|'!B$56,""),"")) -> 
B19: Sonstiges Verbrauchsmaterial | F19: - | H19: =IF(ISBLANK(E19),"",IF(AND(OR(F19>=2,F19<=-2),OR((D19-E19)>=1000,(D19-E19)<=-1000)),IF(ISBLANK(G19),'|'!B$56,""),"")) -> 
B20: Informationsmaterial/ Öffentlichkeitsarbeit | F20: - | H20: =IF(ISBLANK(E20),"",IF(AND(OR(F20>=2,F20<=-2),OR((D20-E20)>=1000,(D20-E20)<=-1000)),IF(ISBLANK(G20),'|'!B$56,""),"")) -> 
B21: Fachliteratur/Abos | F21: - | H21: =IF(ISBLANK(E21),"",IF(AND(OR(F21>=2,F21<=-2),OR((D21-E21)>=1000,(D21-E21)<=-1000)),IF(ISBLANK(G21),'|'!B$56,""),"")) -> 
B22: Fahrt- und Reisekosten | F22: - | H22: =IF(ISBLANK(E22),"",IF(AND(OR(F22>=2,F22<=-2),OR((D22-E22)>=1000,(D22-E22)<=-1000)),IF(ISBLANK(G22),'|'!B$56,""),"")) -> 
B23: Weiterbildung | F23: - | H23: =IF(ISBLANK(E23),"",IF(AND(OR(F23>=2,F23<=-2),OR((D23-E23)>=1000,(D23-E23)<=-1000)),IF(ISBLANK(G23),'|'!B$56,""),"")) -> 
B24: Beiträge, Gebühren, Bankspesen | F24: - | H24: =IF(ISBLANK(E24),"",IF(AND(OR(F24>=2,F24<=-2),OR((D24-E24)>=1000,(D24-E24)<=-1000)),IF(ISBLANK(G24),'|'!B$56,""),"")) -> 
B25: Honorare (Rechts- und Beratungskosten, Supervision, etc.) | F25: - | H25: =IF(ISBLANK(E25),"",IF(AND(OR(F25>=2,F25<=-2),OR((D25-E25)>=1000,(D25-E25)<=-1000)),IF(ISBLANK(G25),'|'!B$56,""),"")) -> 
B26: Geringwertige Wirtschaftsgüter (Investitionen bis zu EUR 1.000,--) | F26: - | H26: =IF(ISBLANK(E26),"",IF(AND(OR(F26>=2,F26<=-2),OR((D26-E26)>=1000,(D26-E26)<=-1000)),IF(ISBLANK(G26),'|'!B$56,""),"")) -> 
B27: Investitionen über EUR 1.000,-- | F27: - | H27: =IF(ISBLANK(E27),"",IF(AND(OR(F27>=2,F27<=-2),OR((D27-E27)>=1000,(D27-E27)<=-1000)),IF(ISBLANK(G27),'|'!B$56,""),"")) -> 
F28: - | H28: =IF(ISBLANK(E28),"",IF(AND(OR(F28>=2,F28<=-2),OR((D28-E28)>=1000,(D28-E28)<=-1000)),IF(ISBLANK(G28),'|'!B$56,""),"")) -> 
F29: - | H29: =IF(ISBLANK(E29),"",IF(AND(OR(F29>=2,F29<=-2),OR((D29-E29)>=1000,(D29-E29)<=-1000)),IF(ISBLANK(G29),'|'!B$56,""),"")) -> 
F30: - | H30: =IF(ISBLANK(E30),"",IF(AND(OR(F30>=2,F30<=-2),OR((D30-E30)>=1000,(D30-E30)<=-1000)),IF(ISBLANK(G30),'|'!B$56,""),"")) -> 
F31: - | H31: =IF(ISBLANK(E31),"",IF(AND(OR(F31>=2,F31<=-2),OR((D31-E31)>=1000,(D31-E31)<=-1000)),IF(ISBLANK(G31),'|'!B$56,""),"")) -> 
F32: - | H32: =IF(ISBLANK(E32),"",IF(AND(OR(F32>=2,F32<=-2),OR((D32-E32)>=1000,(D32-E32)<=-1000)),IF(ISBLANK(G32),'|'!B$56,""),"")) -> 
F33: - | H33: =IF(ISBLANK(E33),"",IF(AND(OR(F33>=2,F33<=-2),OR((D33-E33)>=1000,(D33-E33)<=-1000)),IF(ISBLANK(G33),'|'!B$56,""),"")) -> 
F34: - | H34: =IF(ISBLANK(E34),"",IF(AND(OR(F34>=2,F34<=-2),OR((D34-E34)>=1000,(D34-E34)<=-1000)),IF(ISBLANK(G34),'|'!B$56,""),"")) -> 
F35: - | H35: =IF(ISBLANK(E35),"",IF(AND(OR(F35>=2,F35<=-2),OR((D35-E35)>=1000,(D35-E35)<=-1000)),IF(ISBLANK(G35),'|'!B$56,""),"")) -> 
F36: - | H36: =IF(ISBLANK(E36),"",IF(AND(OR(F36>=2,F36<=-2),OR((D36-E36)>=1000,(D36-E36)<=-1000)),IF(ISBLANK(G36),'|'!B$56,""),"")) -> 
B37: GESAMT | C37: =SUM(C9:OFFSET(C37,-1,0)) -> 0 | D37: =SUM(D9:OFFSET(D37,-1,0)) -> 0 | E37: =SUM(E9:OFFSET(E37,-1,0)) -> 0 | F37: -
B38: davon Overheadkosten | F38: - | H38: =IF(ISBLANK(E38),"",IF(AND(OR(F38>=2,F38<=-2),OR((D38-E38)>=1000,(D38-E38)<=-1000)),IF(ISBLANK(G38),'|'!B$56,""),"")) -> 
B39: Overheadkosten in % | C39: =IF(C37,C38*100/C37,"") ->  | D39: =IF(D37,D38*100/D37,"") -> 
H40: =IF(ISBLANK(E40),"",IF(AND(OR(F40>=2,F40<=-2),OR((D40-E40)>=1000,(D40-E40)<=-1000)),IF(ISBLANK(G40),'|'!B$56,""),"")) -> 
B41: 2. Personalkosten | H41: =IF(ISBLANK(E41),"",IF(AND(OR(F41>=2,F41<=-2),OR((D41-E41)>=1000,(D41-E41)<=-1000)),IF(ISBLANK(G41),'|'!B$56,""),"")) -> 
A42: Ausgaben | B42: Overhead | D42: ='Personalübersicht (Fp)'!I14 -> 0 | E42: ='Personalübersicht (Fp)'!H14 -> 0 | F42: =IF(OR(D42=0,E42=0),"-",E42/D42*100-100) -> - | H42: =IF(ISBLANK(E42),"",IF(AND(OR(F42>=2,F42<=-2),OR((D42-E42)>=1000,(D42-E42)<=-1000)),IF(ISBLANK(G42),'|'!B$56,""),"")) -> 
B43: Angebot/Projekt | D43: ='Personalübersicht (Fp)'!I55 -> 0 | E43: ='Personalübersicht (Fp)'!H55 -> 0 | F43: =IF(OR(D43=0,E43=0),"-",E43/D43*100-100) -> - | H43: =IF(ISBLANK(E43),"",IF(AND(OR(F43>=2,F43<=-2),OR((D43-E43)>=1000,(D43-E43)<=-1000)),IF(ISBLANK(G43),'|'!B$56,""),"")) -> 
B44: GESAMT | C44: =SUM(C42:C43) -> 0 | D44: 0 | E44: =SUM(E42:E43) -> 0 | F44: =IF(OR(D44=0,E44=0),"-",E44/D44*100-100) -> -
B45: Overheadkosten in % | C45: =IF(C44,C42*100/C44,"") ->  | D45: =IF(D44,D42*100/D44,"") -> 
H46: =IF(ISBLANK(E46),"",IF(AND(OR(F46>=2,F46<=-2),OR((D46-E46)>=1000,(D46-E46)<=-1000)),IF(ISBLANK(G46),'|'!B$56,""),"")) -> 
B47: 3. Gesamtkosten | H47: =IF(ISBLANK(E47),"",IF(AND(OR(F47>=2,F47<=-2),OR((D47-E47)>=1000,(D47-E47)<=-1000)),IF(ISBLANK(G47),'|'!B$56,""),"")) -> 
B48: Summe | C48: =C37+C44 -> 0 | D48: =D37+D44 -> 0 | E48: 0 | F48: =IF(OR(D48=0,E48=0),"-",E48/D48*100-100) -> -
B49: davon Overhead | C49: =C38+C42 -> 0 | D49: 0 | E49: =E38+E42 -> 0 | F49: - | H49: =IF(ISBLANK(E49),"",IF(AND(OR(F49>=2,F49<=-2),OR((D49-E49)>=1000,(D49-E49)<=-1000)),IF(ISBLANK(G49),'|'!B$56,""),"")) -> 
B50: Overhead in % | C50: =IF(C48,C49*100/C48,"") ->  | D50: =IF(D48,D49*100/D48,"") -> 
H51: =IF(ISBLANK(E51),"",IF(AND(OR(F51>=2,F51<=-2),OR((D51-E51)>=1000,(D51-E51)<=-1000)),IF(ISBLANK(G51),'|'!B$56,""),"")) -> 
H52: =IF(ISBLANK(E52),"",IF(AND(OR(F52>=2,F52<=-2),OR((D52-E52)>=1000,(D52-E52)<=-1000)),IF(ISBLANK(G52),'|'!B$56,""),"")) -> 
B53: 4. Einnahmen/Eigenmittel (Em) | H53: =IF(ISBLANK(E53),"",IF(AND(OR(F53>=2,F53<=-2),OR((D53-E53)>=1000,(D53-E53)<=-1000)),IF(ISBLANK(G53),'|'!B$56,""),"")) -> 
A54: Einnahmen | B54: Eigene Einnahmen (Mitgliedsbeiträge, Unkostenbeiträge,…) | F54: =IF(OR(D54=0,E54=0),"-",E54/D54*100-100) -> - | H54: =IF(ISBLANK(E54),"",IF(AND(OR(F54>=2,F54<=-2),OR((D54-E54)>=1000,(D54-E54)<=-1000)),IF(ISBLANK(G54),'|'!B$56,""),"")) -> 
B55: Spenden | F55: =IF(OR(D55=0,E55=0),"-",E55/D55*100-100) -> - | H55: =IF(ISBLANK(E55),"",IF(AND(OR(F55>=2,F55<=-2),OR((D55-E55)>=1000,(D55-E55)<=-1000)),IF(ISBLANK(G55),'|'!B$56,""),"")) -> 
B56: Sponsoring | F56: - | H56: =IF(ISBLANK(E56),"",IF(AND(OR(F56>=2,F56<=-2),OR((D56-E56)>=1000,(D56-E56)<=-1000)),IF(ISBLANK(G56),'|'!B$56,""),"")) -> 
B57: Auflösung Rücklagen/Rückstellungen | F57: - | H57: =IF(ISBLANK(E57),"",IF(AND(OR(F57>=2,F57<=-2),OR((D57-E57)>=1000,(D57-E57)<=-1000)),IF(ISBLANK(G57),'|'!B$56,""),"")) -> 
F58: - | H58: =IF(ISBLANK(E58),"",IF(AND(OR(F58>=2,F58<=-2),OR((D58-E58)>=1000,(D58-E58)<=-1000)),IF(ISBLANK(G58),'|'!B$56,""),"")) -> 
F59: - | H59: =IF(ISBLANK(E59),"",IF(AND(OR(F59>=2,F59<=-2),OR((D59-E59)>=1000,(D59-E59)<=-1000)),IF(ISBLANK(G59),'|'!B$56,""),"")) -> 
F60: - | H60: =IF(ISBLANK(E60),"",IF(AND(OR(F60>=2,F60<=-2),OR((D60-E60)>=1000,(D60-E60)<=-1000)),IF(ISBLANK(G60),'|'!B$56,""),"")) -> 
B61: Summe | C61: =SUM(C54:OFFSET(C61,-1,0)) -> 0 | D61: =SUM(D54:OFFSET(D61,-1,0)) -> 0 | E61: =SUM(E54:OFFSET(E61,-1,0)) -> 0 | F61: =IF(OR(D61=0,E61=0),"-",E61/D61*100-100) -> -
B63: 5. Förderungen (Fd) | H63: Status
A64: Einnahmen | B64: EU | F64: =IF(OR(D64=0,E64=0),"-",E64/D64*100-100) -> - | I64: =IF(ISBLANK(E64),"",IF(AND(OR(F64>=2,F64<=-2),OR((D64-E64)>=1000,(D64-E64)<=-1000)),IF(ISBLANK(G64),IF(ISBLANK(H64),'|'!B$57,'|'!B$56),IF(ISBLANK(E64),"",IF(ISBLANK(H64),'|'!B$58,""))),IF(ISBLANK(H64),'|'!B$58,""))) -> 
B65: Bundesministerium, bitte jedes Ministerium einzeln anführen | F65: =IF(OR(D65=0,E65=0),"-",E65/D65*100-100) -> - | I65: =IF(ISBLANK(E65),"",IF(AND(OR(F65>=2,F65<=-2),OR((D65-E65)>=1000,(D65-E65)<=-1000)),IF(ISBLANK(G65),IF(ISBLANK(H65),'|'!B$57,'|'!B$56),IF(ISBLANK(E65),"",IF(ISBLANK(H65),'|'!B$58,""))),IF(ISBLANK(H65),'|'!B$58,""))) -> 
B66: Stadt Wien (OHNE MA 13); bitte jede Magistratsabteilung einzeln anführen | F66: - | I66: =IF(ISBLANK(E66),"",IF(AND(OR(F66>=2,F66<=-2),OR((D66-E66)>=1000,(D66-E66)<=-1000)),IF(ISBLANK(G66),IF(ISBLANK(H66),'|'!B$57,'|'!B$56),IF(ISBLANK(E66),"",IF(ISBLANK(H66),'|'!B$58,""))),IF(ISBLANK(H66),'|'!B$58,""))) -> 
B67: Bezirk, bitte den jeweiligen Bezirk anführen | F67: - | I67: =IF(ISBLANK(E67),"",IF(AND(OR(F67>=2,F67<=-2),OR((D67-E67)>=1000,(D67-E67)<=-1000)),IF(ISBLANK(G67),IF(ISBLANK(H67),'|'!B$57,'|'!B$56),IF(ISBLANK(E67),"",IF(ISBLANK(H67),'|'!B$58,""))),IF(ISBLANK(H67),'|'!B$58,""))) -> 
B68: Sozialpartner | F68: - | I68: =IF(ISBLANK(E68),"",IF(AND(OR(F68>=2,F68<=-2),OR((D68-E68)>=1000,(D68-E68)<=-1000)),IF(ISBLANK(G68),IF(ISBLANK(H68),'|'!B$57,'|'!B$56),IF(ISBLANK(E68),"",IF(ISBLANK(H68),'|'!B$58,""))),IF(ISBLANK(H68),'|'!B$58,""))) -> 
B69: Sonstige | F69: - | I69: =IF(ISBLANK(E69),"",IF(AND(OR(F69>=2,F69<=-2),OR((D69-E69)>=1000,(D69-E69)<=-1000)),IF(ISBLANK(G69),IF(ISBLANK(H69),'|'!B$57,'|'!B$56),IF(ISBLANK(E69),"",IF(ISBLANK(H69),'|'!B$58,""))),IF(ISBLANK(H69),'|'!B$58,""))) -> 
F70: - | I70: =IF(ISBLANK(E70),"",IF(AND(OR(F70>=2,F70<=-2),OR((D70-E70)>=1000,(D70-E70)<=-1000)),IF(ISBLANK(G70),IF(ISBLANK(H70),'|'!B$57,'|'!B$56),IF(ISBLANK(E70),"",IF(ISBLANK(H70),'|'!B$58,""))),IF(ISBLANK(H70),'|'!B$58,""))) -> 
F71: - | I71: =IF(ISBLANK(E71),"",IF(AND(OR(F71>=2,F71<=-2),OR((D71-E71)>=1000,(D71-E71)<=-1000)),IF(ISBLANK(G71),IF(ISBLANK(H71),'|'!B$57,'|'!B$56),IF(ISBLANK(E71),"",IF(ISBLANK(H71),'|'!B$58,""))),IF(ISBLANK(H71),'|'!B$58,""))) -> 
F72: - | I72: =IF(ISBLANK(E72),"",IF(AND(OR(F72>=2,F72<=-2),OR((D72-E72)>=1000,(D72-E72)<=-1000)),IF(ISBLANK(G72),IF(ISBLANK(H72),'|'!B$57,'|'!B$56),IF(ISBLANK(E72),"",IF(ISBLANK(H72),'|'!B$58,""))),IF(ISBLANK(H72),'|'!B$58,""))) -> 
B73: Förderung MA 13, nur bei IST-Zahlen | F73: - | I73: =IF(ISBLANK(E73),"",IF(AND(OR(F73>=2,F73<=-2),OR((D73-E73)>=1000,(D73-E73)<=-1000)),IF(ISBLANK(G73),IF(ISBLANK(H73),'|'!B$57,'|'!B$56),IF(ISBLANK(E73),"",IF(ISBLANK(H73),'|'!B$58,""))),IF(ISBLANK(H73),'|'!B$58,""))) -> 
B74: Summe | C74: =SUM(C64:OFFSET(C74,-1,0)) -> 0 | D74: =SUM(D64:OFFSET(D74,-1,0)) -> 0 | E74: =SUM(E64:OFFSET(E74,-1,0)) -> 0 | F74: -
B76: 6. Gesamteinnahmen
B77: Summe | C77: =C61+C74 -> 0 | D77: =D61+D74 -> 0 | E77: =E61+E74 -> 0 | F77: =IF(OR(D79=0,E79=0),"-",E79/D79*100-100) -> -
B79: Gesamterfordernis (bzw. Überschuss/Defizit bei IST-Zahlen) | C79: =C77-C48 -> 0 | D79: =IF(ISBLANK(D73),D48-D77,D77-D48) -> 0 | E79: =E48-E77 -> 0 | F79: =IF(OR(D79=0,E79=0),"-",E79/D79*100-100) -> -
C93: Ja | D93: Gesamtförderung | H93: angesucht
C94: Nein | D94: Einzeförderung | H94: bewilligt
H97: <- Bitte Begründung angeben

Sheet Personalübersicht (Fp)
I2: =Finanzplan!$C$5-1&" (PLAN Vorjahr)" -> 2022 (PLAN Vorjahr) | K2: ="Vergleich "&RIGHT(Finanzplan!$C$5-1,LEN(Finanzplan!$C$5-1)-2)&"/"&RIGHT(Finanzplan!$C$5,LEN(Finanzplan!$C$5)-2) -> Vergleich 22/23
B3: Funktion | C3: höchste abgeschlossene Qualifikation | D3: Eintritt | F3: ="W-ST "&Finanzplan!$C$5 -> W-ST 2023 | G3: Anstellungszeitraum im Förderjahr in Monaten | H3: Lohnkosten inkl. LNK | I3: ="Lohnkosten inkl. LNK "&Finanzplan!$C$5-1&" (Vorjahr)" -> Lohnkosten inkl. LNK 2022 (Vorjahr) | J3: ="W-ST "&Finanzplan!$C$5-1&" (Vorjahr)" -> W-ST 2022 (Vorjahr) | K3: in Euro | L3: in%
A4: Overhead | K4: =H4-I4 -> 0
K5: =H5-I5 -> 0
K6: 0
K7: 0
K8: 0
K9: 0
K10: 0
K11: 0
K12: 0
K13: 0
A14: Overhead SUMME | F14: =SUM(F4:F13) -> 0 | H14: =SUM(H4:H13) -> 0 | I14: =SUM(I4:I13) -> 0 | J14: =SUM(J4:J13) -> 0 | K14: =H14-I14 -> 0 | L14: =IF(OR(I14=0,H14=0),"-",H14/I14*100-100) -> -
A15: GESAMT
I17: =Finanzplan!$C$5-1&" (PLAN Vorjahr)" -> 2022 (PLAN Vorjahr) | K17: ="Vergleich "&RIGHT(Finanzplan!$C$5-1,LEN(Finanzplan!$C$5-1)-2)&"/"&RIGHT(Finanzplan!$C$5,LEN(Finanzplan!$C$5)-2) -> Vergleich 22/23
B18: Funktion | C18: höchte abgeschlossene Qualifikation | D18: Angebot / Projekt | E18: Eintritt | F18: ="W-ST "&Finanzplan!$C$5 -> W-ST 2023 | G18: Anstellungszeitraum im Förderjahr in Monaten | H18: Lohnkosten inkl. LNK | I18: =" Lohnkosten inkl. LNK "&Finanzplan!$C$5-1&" (Vorjahr)" -> Lohnkosten inkl. LNK 2022 (Vorjahr) | J18: ="W-ST "&Finanzplan!$C$5-1&" (Vorjahr)" -> W-ST 2022 (Vorjahr) | K18: in Euro | L18: in%
A19: Angebot / Projekt | K19: =H19-I19 -> 0
K20: =H20-I20 -> 0
K21: 0
K22: 0
K23: 0
K24: 0
K25: 0
K26: 0
K27: 0
K28: 0
K29: 0
K30: 0
K31: 0
K32: 0
K33: 0
K34: 0
K35: 0
K36: 0
K37: 0
K38: 0
K39: 0
K40: 0
K41: 0
K42: 0
K43: 0
K44: 0
K45: 0
K46: 0
K47: 0
K48: 0
K49: 0
K50: 0
K51: 0
K52: 0
K53: 0
K54: 0
A55: Angebot / Projekt SUMME | F55: =SUM(F19:F54) -> 0 | H55: =SUM(H19:H54) -> 0 | I55: =SUM(I19:I54) -> 0 | J55: =SUM(J19:J54) -> 0 | K55: =H55-I55 -> 0 | L55: =IF(OR(I55=0,H55=0),"-",H55/I55*100-100) -> -

Sheet Zusammenfassung
A1: Förderwerber*in: | C1: =Finanzplan!C1 -> 0
A2: Fördervorhaben: | C2: =Finanzplan!C2 -> 0
A3: Förderart: | C3: =Finanzplan!C3 -> 0
A4: Für das Jahr: | C4: =Finanzplan!C5 -> 2023
C6: ="Ist "&C4-2 -> Ist 2021 | D6: ="Plan/Ist "&C4-1 -> Plan/Ist 2022 | E6: ="Plan "&C4 -> Plan 2023
B7: 1. Sachkosten
A8: Ausgaben | B8: =Finanzplan!B9 -> Miete und Betriebskosten | C8: =Finanzplan!C9 -> 0 | D8: =Finanzplan!D9 -> 0 | E8: =Finanzplan!E9 -> 0
B9: =Finanzplan!B10 -> Gas/Strom/Heizung | C9: =Finanzplan!C10 -> 0 | D9: =Finanzplan!D10 -> 0 | E9: =Finanzplan!E10 -> 0
B10: =Finanzplan!B11 -> Telefon inkl. Onlinekosten | C10: =Finanzplan!C11 -> 0 | D10: =Finanzplan!D11 -> 0 | E10: =Finanzplan!E11 -> 0
B11: =Finanzplan!B12 -> Büromaterial | C11: =Finanzplan!C12 -> 0 | D11: =Finanzplan!D12 -> 0 | E11: =Finanzplan!E12 -> 0
B12: =Finanzplan!B13 -> Porto | C12: =Finanzplan!C13 -> 0 | D12: =Finanzplan!D13 -> 0 | E12: =Finanzplan!E13 -> 0
B13: =Finanzplan!B14 -> Pädagogische Erfordernisse | C13: =Finanzplan!C14 -> 0 | D13: =Finanzplan!D14 -> 0 | E13: =Finanzplan!E14 -> 0
B14: =Finanzplan!B15 -> Kopier- und Druckkosten | C14: =Finanzplan!C15 -> 0 | D14: =Finanzplan!D15 -> 0 | E14: =Finanzplan!E15 -> 0
B15: =Finanzplan!B16 -> Versicherungen, Leasingverträge | C15: =Finanzplan!C16 -> 0 | D15: =Finanzplan!D16 -> 0 | E15: =Finanzplan!E16 -> 0
B16: =Finanzplan!B17 -> Reparaturen, Instandhaltungen | C16: =Finanzplan!C17 -> 0 | D16: =Finanzplan!D17 -> 0 | E16: =Finanzplan!E17 -> 0
B17: =Finanzplan!B18 -> Reinigung | C17: =Finanzplan!C18 -> 0 | D17: =Finanzplan!D18 -> 0 | E17: =Finanzplan!E18 -> 0
B18: =Finanzplan!B19 -> Sonstiges Verbrauchsmaterial | C18: =Finanzplan!C19 -> 0 | D18: =Finanzplan!D19 -> 0 | E18: =Finanzplan!E19 -> 0
B19: =Finanzplan!B20 -> Informationsmaterial/ Öffentlichkeitsarbeit | C19: =Finanzplan!C20 -> 0 | D19: =Finanzplan!D20 -> 0 | E19: =Finanzplan!E20 -> 0
B20: =Finanzplan!B21 -> Fachliteratur/Abos | C20: =Finanzplan!C21 -> 0 | D20: =Finanzplan!D21 -> 0 | E20: =Finanzplan!E21 -> 0
B21: =Finanzplan!B22 -> Fahrt- und Reisekosten | C21: =Finanzplan!C22 -> 0 | D21: =Finanzplan!D22 -> 0 | E21: =Finanzplan!E22 -> 0
B22: =Finanzplan!B23 -> Weiterbildung | C22: =Finanzplan!C23 -> 0 | D22: =Finanzplan!D23 -> 0 | E22: =Finanzplan!E23 -> 0
B23: =Finanzplan!B24 -> Beiträge, Gebühren, Bankspesen | C23: =Finanzplan!C24 -> 0 | D23: =Finanzplan!D24 -> 0 | E23: =Finanzplan!E24 -> 0
B24: =Finanzplan!B25 -> Honorare (Rechts- und Beratungskosten, Supervision, etc.) | C24: =Finanzplan!C25 -> 0 | D24: =Finanzplan!D25 -> 0 | E24: =Finanzplan!E25 -> 0
B25: =Finanzplan!B26 -> Geringwertige Wirtschaftsgüter (Investitionen bis zu EUR 1.000,--) | C25: =Finanzplan!C26 -> 0 | D25: =Finanzplan!D26 -> 0 | E25: =Finanzplan!E26 -> 0
B26: =Finanzplan!B27 -> Investitionen über EUR 1.000,-- | C26: =Finanzplan!C27 -> 0 | D26: =Finanzplan!D27 -> 0 | E26: =Finanzplan!E27 -> 0
B27: =Finanzplan!B28 -> 0 | C27: =Finanzplan!C28 -> 0 | D27: =Finanzplan!D28 -> 0 | E27: =Finanzplan!E28 -> 0
B28: =Finanzplan!B29 -> 0 | C28: =Finanzplan!C29 -> 0 | D28: =Finanzplan!D29 -> 0 | E28: =Finanzplan!E29 -> 0
B29: =Finanzplan!B30 -> 0 | C29: =Finanzplan!C30 -> 0 | D29: =Finanzplan!D30 -> 0 | E29: =Finanzplan!E30 -> 0
B30: =Finanzplan!B31 -> 0 | C30: =Finanzplan!C31 -> 0 | D30: =Finanzplan!D31 -> 0 | E30: =Finanzplan!E31 -> 0
B31: =Finanzplan!B32 -> 0 | C31: =Finanzplan!C32 -> 0 | D31: =Finanzplan!D32 -> 0 | E31: =Finanzplan!E32 -> 0
B32: =Finanzplan!B33 -> 0 | C32: =Finanzplan!C33 -> 0 | D32: =Finanzplan!D33 -> 0 | E32: =Finanzplan!E33 -> 0
B33: =Finanzplan!B34 -> 0 | C33: =Finanzplan!C34 -> 0 | D33: =Finanzplan!D34 -> 0 | E33: =Finanzplan!E34 -> 0
B34: =Finanzplan!B35 -> 0 | C34: =Finanzplan!C35 -> 0 | D34: =Finanzplan!D35 -> 0 | E34: =Finanzplan!E35 -> 0
B35: =Finanzplan!B36 -> 0 | C35: =Finanzplan!C36 -> 0 | D35: =Finanzplan!D36 -> 0 | E35: =Finanzplan!E36 -> 0
B36: GESAMT | C36: =SUM(C8:OFFSET(C36,-1,0)) -> 0 | D36: =SUM(D8:OFFSET(D36,-1,0)) -> 0 | E36: =SUM(E8:OFFSET(E36,-1,0)) -> 0
B38: 2. Personalkosten
A39: Ausgaben | B39: GESAMT | C39: =Finanzplan!C44 -> 0 | D39: =Finanzplan!D44 -> 0 | E39: =Finanzplan!E44 -> 0
B41: 3. Gesamtkosten
A42: Ausgaben | B42: Summe | C42: =C36+C39 -> 0 | D42: =D36+D39 -> 0 | E42: =E36+E39 -> 0
B45: 4. Einnahmen/Eigenmittel
A46: Einnahmen | B46: =Finanzplan!B54 -> Eigene Einnahmen (Mitgliedsbeiträge, Unkostenbeiträge,…) | C46: =Finanzplan!C54 -> 0 | D46: =Finanzplan!D54 -> 0 | E46: =Finanzplan!E54 -> 0
B47: =Finanzplan!B55 -> Spenden | C47: =Finanzplan!C55 -> 0 | D47: =Finanzplan!D55 -> 0 | E47: =Finanzplan!E55 -> 0
B48: =Finanzplan!B56 -> Sponsoring | C48: =Finanzplan!C56 -> 0 | D48: =Finanzplan!D56 -> 0 | E48: =Finanzplan!E56 -> 0
B49: =Finanzplan!B57 -> Auflösung Rücklagen/Rückstellungen | C49: =Finanzplan!C57 -> 0 | D49: =Finanzplan!D57 -> 0 | E49: =Finanzplan!E57 -> 0
B50: =Finanzplan!B58 -> 0 | C50: =Finanzplan!C58 -> 0 | D50: =Finanzplan!D58 -> 0 | E50: =Finanzplan!E58 -> 0
B51: =Finanzplan!B59 -> 0 | C51: =Finanzplan!C59 -> 0 | D51: =Finanzplan!D59 -> 0 | E51: =Finanzplan!E59 -> 0
B52: =Finanzplan!B60 -> 0 | C52: =Finanzplan!C60 -> 0 | D52: =Finanzplan!D60 -> 0 | E52: =Finanzplan!E60 -> 0
B53: Summe | C53: =SUM(C46:OFFSET(C53,-1,0)) -> 0 | D53: =SUM(D46:OFFSET(D53,-1,0)) -> 0 | E53: =SUM(E46:OFFSET(E53,-1,0)) -> 0
B55: 5. Förderungen
A56: Einnahmen | B56: =Finanzplan!B64 -> EU | C56: =Finanzplan!C64 -> 0 | D56: =Finanzplan!D64 -> 0 | E56: =Finanzplan!E64 -> 0
B57: =Finanzplan!B65 -> Bundesministerium, bitte jedes Ministerium einzeln anführen | C57: =Finanzplan!C65 -> 0 | D57: =Finanzplan!D65 -> 0 | E57: =Finanzplan!E65 -> 0
B58: =Finanzplan!B66 -> Stadt Wien (OHNE MA 13); bitte jede Magistratsabteilung einzeln anführen | C58: =Finanzplan!C66 -> 0 | D58: =Finanzplan!D66 -> 0 | E58: =Finanzplan!E66 -> 0
B59: =Finanzplan!B67 -> Bezirk, bitte den jeweiligen Bezirk anführen | C59: =Finanzplan!C67 -> 0 | D59: =Finanzplan!D67 -> 0 | E59: =Finanzplan!E67 -> 0
B60: =Finanzplan!B68 -> Sozialpartner | C60: =Finanzplan!C68 -> 0 | D60: =Finanzplan!D68 -> 0 | E60: =Finanzplan!E68 -> 0
B61: =Finanzplan!B69 -> Sonstige | C61: =Finanzplan!C69 -> 0 | D61: =Finanzplan!D69 -> 0 | E61: =Finanzplan!E69 -> 0
B62: =Finanzplan!B70 -> 0 | C62: =Finanzplan!C70 -> 0 | D62: =Finanzplan!D70 -> 0 | E62: =Finanzplan!E70 -> 0
B63: =Finanzplan!B71 -> 0 | C63: =Finanzplan!C71 -> 0 | D63: =Finanzplan!D71 -> 0 | E63: =Finanzplan!E71 -> 0
B64: =Finanzplan!B72 -> 0 | C64: =Finanzplan!C72 -> 0 | D64: =Finanzplan!D72 -> 0 | E64: =Finanzplan!E72 -> 0
B65: =Finanzplan!B73 -> Förderung MA 13, nur bei IST-Zahlen | C65: =Finanzplan!C73 -> 0 | D65: =Finanzplan!D73 -> 0 | E65: =Finanzplan!E73 -> 0
B66: Summe | C66: =SUM(C56:OFFSET(C66,-1,0)) -> 0 | D66: =SUM(D56:OFFSET(D66,-1,0)) -> 0 | E66: =SUM(E56:OFFSET(E66,-1,0)) -> 0
B68: 6. Gesamteinnahmen
B69: Summe | C69: =C53+C66 -> 0 | D69: =D53+D66 -> 0 | E69: =E53+E66 -> 0
B71: Gesamterfordernis (bzw. Überschuss/Defizit bei IST-Zahlen) | C71: =C69-C42 -> 0 | D71: =IF(ISBLANK(D58),D42-D69,D69-D42) -> 0 | E71: =E42-E69 -> 0

Sheet |
B50: Gesamtförderung
B51: Einzelförderung
B53: angesucht
B54: bewilligt
B56: <- Bitte Begründung angeben
B57: <- Bitte Begründung und Status angeben
B58: <- Bitte Status angeben
B59: <- Bitte Überschuss begründen
B60: <- Bitte Defizit begründen
B62: Ja
B63: Nein

Sheet Erläuterungen (Fb)
A1: Fördernehmer*in: | B1: Name laut ZVR-Auszug/Firmenbuchauszug
A2: Förderart: | B2: Hier ist zwischen Gesamt- und Einzelförderung zu unterscheiden; Gesamtförderung - Eine Gesamtförderung/Basisförderung ist eine Förderung zur Deckung des gesamten oder aliquoten Teiles des nach Abzug allfälliger Einnahmen verbleibenden Fehlbetrages für die bestimmungsgemäße Tätigkeit (Gesamttätigkeit oder Teilbereichstätigkeit) der*des Förderwerber*in binnerhalb eines im Fördervertrag bestimmten Zeitraumes; Einzelförderung - Ist eine Förderung für ein zeitlich abgegrenztes und sachlich bestimmtes Vorhaben (z.B. Förderung eines bestimmten Projekts)
A3: Fördergegenstand: | B3: Hier ist anzuführen, welches Vorhaben/Projekt abgerechnet werden soll (z.B: Gesamttätigkeit 2021, Bildungstätigkeit, Projekt xxx)
A4: Begründung: | B4: Nachvollziehbare Begründungen sind in jenen Ausgaben- und Einnahmenfeldern anzuführen, in denen die Abweichung zum Plan-Wert 2023 über 10 % UND EUR 1.000,-- liegt
A5: Overheadkosten: | B5: Overhead bzw. Gemeinkosten (indirekte Kosten) sind jene Kosten, die nicht direkt einem Angebot/Projekt zugerechnet werden können. Dazu zählen z.B. Verwaltungspersonal und Sachkosten für zentralen Aufwand. Sollten für einzelne Positionen Berechnungsschlüssel vorliegen, können diese entsprechen aliquotiert den Overheadkosten zugerechnet werden. Dies gilt sowohl für Personal- als auch Sachkosten.
B6: Zu den Overheadkosten zählen: | C6: Sämtliche Sachkosten, wie z.B. Mieten inkl. Technik und Reinigung bei zentralen Geschäftsstellen
C7: Personalkosten für Geschäftsführung, Office Management, Buchhaltung etc., sofern diese Personen nicht mit Zielgruppen arbeiten
A8: Sachkosten: | B8: Hier können auch noch weitere Positionen hinzugefügt werden. Die Positionen müssen jedoch dem Österreichischen Kontenrahmen entsprechen. Zwecks Vergleichbarkeit muss die Struktur des Finanzberichts der Struktur des Finanzplans entsprechen (gleiche Kostenpositionenf und einheitliche Zuordnung der Ausgaben zu den Kostenarten). Zudem muss im Rahmen der Abrechnung auch gewährleistet werden können, dass bei den Finanzberichten eine einfache Vergleichbarkeit zu den Einzelkontennachweisen herzustellen ist.
A9: Personalkosten: | B9: Die detaillierten Personalkosten für Plan und Ist im Jahr 2023 sind in der Personalübersicht vollständig anzuführen (bei Bedarf ist es möglich, noch weitere Zeilen einzufügen). Die Summe der Overhead- und angebots-/projektbezogenen Personalkosten in der Personalübersicht aus dem Jahr 2023 (Plan UND Ist) werden automatisch in den Finanzplan eingespeist. Bei dem Jahr 2022 müssen die Summen von Overhead und angebots-/projektbezogenen Personalkosten direkt im Finanzbericht eingegeben werden.
A10: Abw. in %: | B10: Sollte bei einer Ist-Position gegenüber dem Plan-Wert eine Abweichung von mindestens 10% UND EUR 1.000,-- vorliegen, ist eine nachvollziehbare Begründung anzuführen
A11: Förderungen: | B11: Die erhaltene Förderung der MA 13 ist unter "Förderung MA 13" anzuführen. ACHTUNG: Die Planwerte werden durch Aktivierung des Button "Lade Förderungen aus Finanzplan" importiert.
A12: Differenz ( Gesamteinnahmen - Gesamtasugaben): | B12: NICHT BEFÜLLBAR, wird automatisch berechnet; Die Differenz ergibt sich aus den Gesamteinnahmen abzüglich der Gesamtausgaben und stellt das Jahresergebnis dar.
A13: Personalübersicht (Fb): | B13: Zieht sich die Datenfelder Funktion, höchste abgeschlossene Qualifikation, Angebot/Projekt, Eintritt, Anstellungszeitraum in Monaten, Lohnkosten inkl. LNK/Plan und W-ST Plan aus der Personalübersicht, welche im Rahmen der Einreichung übermittelt wurde; die restlichen Felder müssen manuell ausgefüllt werden und den IST-Stand darstellen.
A14: Fördernehmer*in: | C14: Verein X
A15: Förderart: | C15: Gesamtförderung
A16: Fördergegenstand: | C16: Bildungstätigkeit
A17: Erstansuchen: | C17: Nein
A18: Förderjahr: | C18: 2023
C20: ="Ist "&C18-1 -> Ist 2022 | D20: ="Plan "&C18 -> Plan 2023 | E20: ="Ist "&C18 -> Ist 2023 | F20: Abw. in % | G20: ="Begründung (wenn Abweichung gegenüber Ist "&C18&" über 10% und EUR 1.000,-- ist)" -> Begründung (wenn Abweichung gegenüber Ist 2023 über 10% und EUR 1.000,-- ist)
B21: 1. Sachkosten
A22: Ausgaben | B22: Miete und Betriebskosten | C22: 6900 | D22: 6900 | E22: 12000 | F22: 73.91304348 | G22: Zusätzlicher Standort
B23: Gas/Strom/Heizung | C23: 5000 | D23: 4700 | E23: 5000 | F23: 6.382978723
B24: Telefon inkl. Onlinekosten | C24: 1800 | D24: 1800 | E24: 1900 | F24: 5.555555556
B25: Büromaterial | C25: 1600 | D25: 1600 | E25: 1500 | F25: -6.25
B26: Porto | C26: 50 | D26: 40 | E26: 30 | F26: =(E26-D26)/D26 -> -0.25
B27: Pädagogische Erfordernisse | C27: 50 | D27: 40 | E27: 50 | F27: =(E27-D27)/D27 -> 0.25
B28: Kopier- und Druckkosten | C28: 150 | D28: 150 | E28: 150 | F28: 0
B29: Versicherungen, Leasingverträge | C29: 1700 | D29: 1700 | E29: 1700 | F29: 0
B30: Reparaturen, Instandhaltungen | C30: =4500+7700 -> 12200 | D30: =4500+8500 -> 13000 | E30: =10000+17500 -> 27500 | F30: 122.2222222 | G30: Barrierefreie Sanitäranlagen
B31: Reinigung | C31: 1100 | D31: 1200 | E31: 1500 | F31: =(E31-D31)/D31 -> 0.25
B32: Sonstiges Verbrauchsmaterial | C32: 500 | D32: 500 | E32: 500 | F32: 0
B33: Informationsmaterial/ Öffentlichkeitsarbeit | C33: 2200 | D33: 2800 | E33: 2800 | F33: 0
B34: Fachliteratur/Abos | C34: 300 | D34: 200 | E34: 200 | F34: 0
B35: Fahrt- und Reisekosten | C35: 2200 | D35: 2200 | E35: 2200 | F35: 0
B36: Weiterbildung | F36: -
B37: Beiträge, Gebühren, Bankspesen | C37: 1700 | D37: 1500 | E37: 1700 | F37: 13.33333333
B38: Honorare (Rechts- und Beratungskosten, Supervision, etc.) | C38: 10500 | D38: 12000 | E38: 12000 | F38: 0
B39: Geringwertige Wirtschaftsgüter (Investitionen bis zu EUR 1.000,--) | C39: 1700 | D39: 1700 | E39: 1700 | F39: 0
B40: Investitionen über EUR 1.000,-- | C40: 1700 | D40: 1700 | E40: 2000 | F40: =(E40-D40)/D40 -> 0.1764705882
F41: =IF(OR(D41=0,E41=0),"-",E41/D41*100-100) -> -
F42: -
F43: - | G43: =IF(ISBLANK(E43),"",IF(AND(OR(F43>=2,F43<=-2),OR((D43-E43)>=100,(D43-E43)<=-100)),"Bitte Begründung in dieser Zelle angeben","")) -> 
F44: =IF(OR(D44=0,E44=0),"-",E44/D44*100-100) -> - | G44: =IF(ISBLANK(E44),"",IF(AND(OR(F44>=2,F44<=-2),OR((D44-E44)>=100,(D44-E44)<=-100)),"Bitte Begründung in dieser Zelle angeben","")) -> 
F45: =IF(OR(D45=0,E45=0),"-",E45/D45*100-100) -> - | G45: =IF(ISBLANK(E45),"",IF(AND(OR(F45>=2,F45<=-2),OR((D45-E45)>=100,(D45-E45)<=-100)),"Bitte Begründung in dieser Zelle angeben","")) -> 
B46: GESAMT | C46: =SUM(C22:C45) -> 51350 | D46: =SUM(D22:D45) -> 53730 | E46: =SUM(E22:E45) -> 74430 | F46: =IF(OR(D46=0,E46=0),"-",E46/D46*100-100) -> 38.52596315
B47: davon Overheadkosten | C47: 7000 | D47: 7500 | E47: 8000 | F47: =IF(OR(D47=0,E47=0),"-",E47/D47*100-100) -> 6.666666667
B48: Overheadkosten in % | C48: =C47*100/C46 -> 13.63193768 | D48: =D47*100/D46 -> 13.9586823 | E48: =E47*100/E46 -> 10.74835416
G49: =IF(ISBLANK(E49),"",IF(AND(OR(F49>=2,F49<=-2),OR((D49-E49)>=1000,(D49-E49)<=-1000)),"Bitte Begründung in dieser Zelle angeben","")) -> 
B50: 2. Personalkosten | G50: =IF(ISBLANK(E50),"",IF(AND(OR(F50>=2,F50<=-2),OR((D50-E50)>=1000,(D50-E50)<=-1000)),"Bitte Begründung in dieser Zelle angeben","")) -> 
A51: Ausgaben | B51: Overhead | C51: 45000 | D51: 45000 | E51: 45000 | F51: =IF(OR(D51=0,E51=0),"-",E51/D51*100-100) -> 0 | G51: =IF(ISBLANK(E51),"",IF(AND(OR(F51>=2,F51<=-2),OR((D51-E51)>=100,(D51-E51)<=-100)),"Bitte Begründung in dieser Zelle angeben","")) -> 
B52: Angebot/Projekt | C52: 240000 | D52: 241000 | E52: 245000 | F52: =IF(OR(D52=0,E52=0),"-",E52/D52*100-100) -> 1.659751037 | G52: =IF(ISBLANK(E52),"",IF(AND(OR(F52>=2,F52<=-2),OR((D52-E52)>=100,(D52-E52)<=-100)),"Bitte Begründung in dieser Zelle angeben","")) -> 
B53: GESAMT | C53: =SUM(C51:C52) -> 285000 | D53: =SUM(D51:D52) -> 286000 | E53: =SUM(E51:E52) -> 290000 | F53: =IF(OR(D53=0,E53=0),"-",E53/D53*100-100) -> 1.398601399
B54: Overheadkosten in % | C54: =C51*100/C53 -> 15.78947368 | D54: =D51*100/D53 -> 15.73426573 | E54: =E51*100/E53 -> 15.51724138 | F54: =IF(OR(D54=0,E54=0),"-",E54/D54*100-100) -> -1.379310345
G55: =IF(ISBLANK(E55),"",IF(AND(OR(F55>=2,F55<=-2),OR((D55-E55)>=1000,(D55-E55)<=-1000)),"Bitte Begründung in dieser Zelle angeben","")) -> 
B56: 3. Gesamtkosten | G56: =IF(ISBLANK(E56),"",IF(AND(OR(F56>=2,F56<=-2),OR((D56-E56)>=1000,(D56-E56)<=-1000)),"Bitte Begründung in dieser Zelle angeben","")) -> 
B57: Summe | C57: =C46+C53 -> 336350 | D57: =D46+D53 -> 339730 | E57: =E46+E53 -> 364430 | F57: =IF(OR(D57=0,E57=0),"-",E57/D57*100-100) -> 7.270479498
B58: davon Overhead | C58: =C47+C51 -> 52000 | D58: =D47+D51 -> 52500 | E58: =E47+E51 -> 53000 | F58: =IF(OR(D58=0,E58=0),"-",E58/D58*100-100) -> 0.9523809524 | G58: =IF(ISBLANK(E58),"",IF(AND(OR(F58>=2,F58<=-2),OR((D58-E58)>=100,(D58-E58)<=-100)),"Bitte Begründung in dieser Zelle angeben","")) -> 
B59: Overhead in % | C59: =C58*100/C57 -> 15.46008622 | D59: =D58*100/D57 -> 15.45344833 | E59: =E58*100/E57 -> 14.54325934 | F59: =IF(OR(D59=0,E59=0),"-",E59/D59*100-100) -> -5.889876297
G61: =IF(ISBLANK(E61),"",IF(AND(OR(F61>=2,F61<=-2),OR((D61-E61)>=1000,(D61-E61)<=-1000)),"Bitte Begründung in dieser Zelle angeben","")) -> 
B62: 4. Einnahmen/Eigenmittel | G62: =IF(ISBLANK(E62),"",IF(AND(OR(F62>=2,F62<=-2),OR((D62-E62)>=1000,(D62-E62)<=-1000)),"Bitte Begründung in dieser Zelle angeben","")) -> 
A63: Einnahmen | B63: Eigene Einnahmen (Mitgliedsbeiträge, Unkostenbeiträge,…) | C63: 1180 | D63: 1200 | E63: 1200 | F63: =IF(OR(D63=0,E63=0),"-",E63/D63*100-100) -> 0 | G63: =IF(ISBLANK(E63),"",IF(AND(OR(F63>=2,F63<=-2),OR((D63-E63)>=100,(D63-E63)<=-100)),"Bitte Begründung in dieser Zelle angeben","")) -> 
B64: Spenden | F64: -
B65: Sponsoring | F65: -
B66: Auflösung Rücklagen | F66: -
F67: -
F68: -
B69: Summe | C69: =SUM(C63:C68) -> 1180 | D69: =SUM(D63:D68) -> 1200 | E69: =SUM(E63:E68) -> 1200 | F69: 0
B71: 5. Förderungen
A72: Einnahmen | B72: EU | C72: 7500 | F72: =IF(OR(D72=0,E72=0),"-",E72/D72*100-100) -> - | G72: =IF(ISBLANK(E72),"",IF(AND(OR(F72>=2,F72<=-2),OR((D72-E72)>=100,(D72-E72)<=-100)),"Bitte Begründung in dieser Zelle angeben","")) -> 
B73: Bundesministerium | F73: -
B74: Stadt Wien (OHNE MA 13) | F74: -
B75: Bezirk, bitte den jeweiligen Bezirk anführen | C75: 1500 | F75: -
B76: Förderung MA 13 | C76: 200000 | D76: 200000 | E76: 200000 | F76: 0
B77: Sonstige | F77: -
B78: Summe | C78: =SUM(C72:C77) -> 209000 | D78: =SUM(D72:D77) -> 200000 | E78: =SUM(E72:E77) -> 200000 | F78: 0
G79: =IF(ISBLANK(E79),"",IF(AND(OR(F79>=2,F79<=-2),OR((D79-E79)>=1000,(D79-E79)<=-1000)),"Bitte Begründung in dieser Zelle angeben","")) -> 
B80: 6. Gesamteinnahmen | G80: =IF(ISBLANK(E80),"",IF(AND(OR(F80>=2,F80<=-2),OR((D80-E80)>=1000,(D80-E80)<=-1000)),"Bitte Begründung in dieser Zelle angeben","")) -> 
B81: Summe | C81: =C69+C78 -> 210180 | D81: =D69+D78 -> 201200 | E81: =E69+E78 -> 201200 | F81: =IF(OR(D83=0,E83=0),"-",E83/D83*100-100) -> 17.83007291
B83: Differenz (Gesamteinnahmen - Gesamtausgaben) | C83: =C81-C57 -> -126170 | D83: =D81-D57 -> -138530 | E83: -163230 | F83: =IF(OR(D83=0,E83=0),"-",E83/D83*100-100) -> 17.83007291
D96: Gesamtförderung
D97: Einzelförderung

Sheet Finanzbericht
A1: Fördernehmer*in: | C1: =IF(ISBLANK(Finanzplan!C1),"",Finanzplan!C1) -> 
A2: Förderart: | C2: =IF(ISBLANK(Finanzplan!C3),"",Finanzplan!C3) -> 
A3: Fördergegenstand: | C3: =IF(ISBLANK(Finanzplan!C2),"",Finanzplan!C2) -> 
A4: Erstansuchen | C4: =IF(ISBLANK(Finanzplan!C4),"",Finanzplan!C4) -> Nein
A5: Förderjahr: | C5: =IF(ISBLANK(Finanzplan!C5),"",Finanzplan!C5) -> 2023
C7: ="Ist "&C5-1 -> Ist 2022 | D7: ="Plan "&C5 -> Plan 2023 | E7: ="Ist "&C5 -> Ist 2023 | F7: Abw. in % | G7: ="Begründung (wenn Abweichung gegenüber Plan "&C5&" über 10 % und EUR 1.000,-- ist)" -> Begründung (wenn Abweichung gegenüber Plan 2023 über 10 % und EUR 1.000,-- ist)
B8: 1. Sachkosten (Sk)
A9: Ausgaben | B9: Miete und Betriebskosten | F9: =IF(OR(D9=0,E9=0),"-",E9/D9*100-100) -> - | H9: =IF(ISBLANK(E9),"",IF(AND(OR(F9>=10,F9<=-10),OR((D9-E9)>=1000,(D9-E9)<=-1000)),IF(ISBLANK(G9),'|'!B$56,""),"")) -> 
B10: Gas/Strom/Heizung | F10: - | H10: =IF(ISBLANK(E10),"",IF(AND(OR(F10>=10,F10<=-10),OR((D10-E10)>=1000,(D10-E10)<=-1000)),IF(ISBLANK(G10),'|'!B$56,""),"")) -> 
B11: Telefon inkl. Onlinekosten | F11: - | H11: =IF(ISBLANK(E11),"",IF(AND(OR(F11>=10,F11<=-10),OR((D11-E11)>=1000,(D11-E11)<=-1000)),IF(ISBLANK(G11),'|'!B$56,""),"")) -> 
B12: Büromaterial | F12: - | H12: =IF(ISBLANK(E12),"",IF(AND(OR(F12>=10,F12<=-10),OR((D12-E12)>=1000,(D12-E12)<=-1000)),IF(ISBLANK(G12),'|'!B$56,""),"")) -> 
B13: Porto | F13: - | H13: =IF(ISBLANK(E13),"",IF(AND(OR(F13>=10,F13<=-10),OR((D13-E13)>=1000,(D13-E13)<=-1000)),IF(ISBLANK(G13),'|'!B$56,""),"")) -> 
B14: Pädagogische Erfordernisse | F14: - | H14: =IF(ISBLANK(E14),"",IF(AND(OR(F14>=10,F14<=-10),OR((D14-E14)>=1000,(D14-E14)<=-1000)),IF(ISBLANK(G14),'|'!B$56,""),"")) -> 
B15: Kopier- und Druckkosten | F15: - | H15: =IF(ISBLANK(E15),"",IF(AND(OR(F15>=10,F15<=-10),OR((D15-E15)>=1000,(D15-E15)<=-1000)),IF(ISBLANK(G15),'|'!B$56,""),"")) -> 
B16: Versicherungen, Leasingverträge | F16: =IF(OR(D16=0,E16=0),"-",E16/D16*100-100) -> - | H16: =IF(ISBLANK(E16),"",IF(AND(OR(F16>=10,F16<=-10),OR((D16-E16)>=1000,(D16-E16)<=-1000)),IF(ISBLANK(G16),'|'!B$56,""),"")) -> 
B17: Reparaturen, Instandhaltungen | F17: - | H17: =IF(ISBLANK(E17),"",IF(AND(OR(F17>=10,F17<=-10),OR((D17-E17)>=1000,(D17-E17)<=-1000)),IF(ISBLANK(G17),'|'!B$56,""),"")) -> 
B18: Reinigung | F18: - | H18: =IF(ISBLANK(E18),"",IF(AND(OR(F18>=10,F18<=-10),OR((D18-E18)>=1000,(D18-E18)<=-1000)),IF(ISBLANK(G18),'|'!B$56,""),"")) -> 
B19: Sonstiges Verbrauchsmaterial | F19: - | H19: =IF(ISBLANK(E19),"",IF(AND(OR(F19>=10,F19<=-10),OR((D19-E19)>=1000,(D19-E19)<=-1000)),IF(ISBLANK(G19),'|'!B$56,""),"")) -> 
B20: Informationsmaterial/ Öffentlichkeitsarbeit | F20: - | H20: =IF(ISBLANK(E20),"",IF(AND(OR(F20>=10,F20<=-10),OR((D20-E20)>=1000,(D20-E20)<=-1000)),IF(ISBLANK(G20),'|'!B$56,""),"")) -> 
B21: Fachliteratur/Abos | F21: - | H21: =IF(ISBLANK(E21),"",IF(AND(OR(F21>=10,F21<=-10),OR((D21-E21)>=1000,(D21-E21)<=-1000)),IF(ISBLANK(G21),'|'!B$56,""),"")) -> 
B22: Fahrt- und Reisekosten | F22: - | H22: =IF(ISBLANK(E22),"",IF(AND(OR(F22>=10,F22<=-10),OR((D22-E22)>=1000,(D22-E22)<=-1000)),IF(ISBLANK(G22),'|'!B$56,""),"")) -> 
B23: Weiterbildung | F23: - | H23: =IF(ISBLANK(E23),"",IF(AND(OR(F23>=10,F23<=-10),OR((D23-E23)>=1000,(D23-E23)<=-1000)),IF(ISBLANK(G23),'|'!B$56,""),"")) -> 
B24: Beiträge, Gebühren, Bankspesen | F24: - | H24: =IF(ISBLANK(E24),"",IF(AND(OR(F24>=10,F24<=-10),OR((D24-E24)>=1000,(D24-E24)<=-1000)),IF(ISBLANK(G24),'|'!B$56,""),"")) -> 
B25: Honorare (Rechts- und Beratungskosten, Supervision, etc.) | F25: - | H25: =IF(ISBLANK(E25),"",IF(AND(OR(F25>=10,F25<=-10),OR((D25-E25)>=1000,(D25-E25)<=-1000)),IF(ISBLANK(G25),'|'!B$56,""),"")) -> 
B26: Geringwertige Wirtschaftsgüter (Investitionen bis zu EUR 1.000,--) | F26: - | H26: =IF(ISBLANK(E26),"",IF(AND(OR(F26>=10,F26<=-10),OR((D26-E26)>=1000,(D26-E26)<=-1000)),IF(ISBLANK(G26),'|'!B$56,""),"")) -> 
B27: Investitionen über EUR 1.000,-- | F27: - | H27: =IF(ISBLANK(E27),"",IF(AND(OR(F27>=10,F27<=-10),OR((D27-E27)>=1000,(D27-E27)<=-1000)),IF(ISBLANK(G27),'|'!B$56,""),"")) -> 
F28: - | H28: =IF(ISBLANK(E28),"",IF(AND(OR(F28>=10,F28<=-10),OR((D28-E28)>=1000,(D28-E28)<=-1000)),IF(ISBLANK(G28),'|'!B$56,""),"")) -> 
F29: - | H29: =IF(ISBLANK(E29),"",IF(AND(OR(F29>=10,F29<=-10),OR((D29-E29)>=1000,(D29-E29)<=-1000)),IF(ISBLANK(G29),'|'!B$56,""),"")) -> 
F30: - | H30: =IF(ISBLANK(E30),"",IF(AND(OR(F30>=10,F30<=-10),OR((D30-E30)>=1000,(D30-E30)<=-1000)),IF(ISBLANK(G30),'|'!B$56,""),"")) -> 
F31: - | H31: =IF(ISBLANK(E31),"",IF(AND(OR(F31>=10,F31<=-10),OR((D31-E31)>=1000,(D31-E31)<=-1000)),IF(ISBLANK(G31),'|'!B$56,""),"")) -> 
F32: - | H32: =IF(ISBLANK(E32),"",IF(AND(OR(F32>=10,F32<=-10),OR((D32-E32)>=1000,(D32-E32)<=-1000)),IF(ISBLANK(G32),'|'!B$56,""),"")) -> 
F33: - | H33: =IF(ISBLANK(E33),"",IF(AND(OR(F33>=10,F33<=-10),OR((D33-E33)>=1000,(D33-E33)<=-1000)),IF(ISBLANK(G33),'|'!B$56,""),"")) -> 
F34: - | H34: =IF(ISBLANK(E34),"",IF(AND(OR(F34>=10,F34<=-10),OR((D34-E34)>=1000,(D34-E34)<=-1000)),IF(ISBLANK(G34),'|'!B$56,""),"")) -> 
F35: - | H35: =IF(ISBLANK(E35),"",IF(AND(OR(F35>=10,F35<=-10),OR((D35-E35)>=1000,(D35-E35)<=-1000)),IF(ISBLANK(G35),'|'!B$56,""),"")) -> 
F36: - | H36: =IF(ISBLANK(E36),"",IF(AND(OR(F36>=10,F36<=-10),OR((D36-E36)>=1000,(D36-E36)<=-1000)),IF(ISBLANK(G36),'|'!B$56,""),"")) -> 
B37: GESAMT | C37: =SUM(C9:OFFSET(C37,-1,0)) -> 0 | D37: =SUM(D9:OFFSET(D37,-1,0)) -> 0 | E37: =SUM(E9:OFFSET(E37,-1,0)) -> 0 | F37: -
B38: davon Overheadkosten | F38: - | H38: =IF(ISBLANK(E38),"",IF(AND(OR(F38>=10,F38<=-10),OR((D38-E38)>=1000,(D38-E38)<=-1000)),IF(ISBLANK(G38),'|'!B$56,""),"")) -> 
B39: Overheadkosten in % | C39: =IF(C37,C38*100/C37,"") ->  | D39: =IF(D37,D38*100/D37,"") -> 
B41: 2. Personalkosten
A42: Ausgaben | B42: Overhead | D42: ='Personalübersicht (Fb)'!I14 -> 0 | E42: ='Personalübersicht (Fb)'!H14 -> 0 | F42: =IF(OR(D42=0,E42=0),"-",E42/D42*100-100) -> - | H42: =IF(ISBLANK(E42),"",IF(AND(OR(F42>=10,F42<=-10),OR((D42-E42)>=1000,(D42-E42)<=-1000)),IF(ISBLANK(G42),'|'!B$56,""),"")) -> 
B43: Angebot/Projekt | D43: ='Personalübersicht (Fb)'!I55 -> 0 | E43: ='Personalübersicht (Fb)'!H55 -> 0 | F43: =IF(OR(D43=0,E43=0),"-",E43/D43*100-100) -> - | H43: =IF(ISBLANK(E43),"",IF(AND(OR(F43>=10,F43<=-10),OR((D43-E43)>=1000,(D43-E43)<=-1000)),IF(ISBLANK(G43),'|'!B$56,""),"")) -> 
B44: GESAMT | C44: =SUM(C42:C43) -> 0 | D44: 0 | E44: =SUM(E42:E43) -> 0 | F44: =IF(OR(D44=0,E44=0),"-",E44/D44*100-100) -> -
B45: Overheadkosten in % | C45: =IF(C44,C42*100/C44,"") ->  | D45: =IF(D44,D42*100/D44,"") -> 
B47: 3. Gesamtkosten
B48: Summe | C48: =C37+C44 -> 0 | D48: =D37+D44 -> 0 | E48: 0 | F48: =IF(OR(D48=0,E48=0),"-",E48/D48*100-100) -> -
B49: davon Overhead | C49: =C38+C42 -> 0 | D49: 0 | E49: =E38+E42 -> 0 | F49: - | H49: =IF(ISBLANK(E49),"",IF(AND(OR(F49>=10,F49<=-10),OR((D49-E49)>=1000,(D49-E49)<=-1000)),IF(ISBLANK(G49),'|'!B$56,""),"")) -> 
B50: Overhead in % | C50: =IF(C48,C49*100/C48,"") ->  | D50: =IF(D48,D49*100/D48,"") -> 
B53: 4. Einnahmen/Eigenmittel (Em)
A54: Einnahmen | B54: Eigene Einnahmen (Mitgliedsbeiträge, Unkostenbeiträge,…) | F54: =IF(OR(D54=0,E54=0),"-",E54/D54*100-100) -> - | H54: =IF(ISBLANK(E54),"",IF(AND(OR(F54>=10,F54<=-10),OR((D54-E54)>=1000,(D54-E54)<=-1000)),IF(ISBLANK(G54),'|'!B$56,""),"")) -> 
B55: Spenden | F55: =IF(OR(D55=0,E55=0),"-",E55/D55*100-100) -> - | H55: =IF(ISBLANK(E55),"",IF(AND(OR(F55>=10,F55<=-10),OR((D55-E55)>=1000,(D55-E55)<=-1000)),IF(ISBLANK(G55),'|'!B$56,""),"")) -> 
B56: Sponsoring | F56: - | H56: =IF(ISBLANK(E56),"",IF(AND(OR(F56>=10,F56<=-10),OR((D56-E56)>=1000,(D56-E56)<=-1000)),IF(ISBLANK(G56),'|'!B$56,""),"")) -> 
B57: Auflösung Rücklagen/Rückstellungen | F57: - | H57: =IF(ISBLANK(E57),"",IF(AND(OR(F57>=10,F57<=-10),OR((D57-E57)>=1000,(D57-E57)<=-1000)),IF(ISBLANK(G57),'|'!B$56,""),"")) -> 
F58: - | H58: =IF(ISBLANK(E58),"",IF(AND(OR(F58>=10,F58<=-10),OR((D58-E58)>=1000,(D58-E58)<=-1000)),IF(ISBLANK(G58),'|'!B$56,""),"")) -> 
F59: - | H59: =IF(ISBLANK(E59),"",IF(AND(OR(F59>=10,F59<=-10),OR((D59-E59)>=1000,(D59-E59)<=-1000)),IF(ISBLANK(G59),'|'!B$56,""),"")) -> 
F60: - | H60: =IF(ISBLANK(E60),"",IF(AND(OR(F60>=10,F60<=-10),OR((D60-E60)>=1000,(D60-E60)<=-1000)),IF(ISBLANK(G60),'|'!B$56,""),"")) -> 
B61: Summe | C61: =SUM(C54:OFFSET(C61,-1,0)) -> 0 | D61: =SUM(D54:OFFSET(D61,-1,0)) -> 0 | E61: =SUM(E54:OFFSET(E61,-1,0)) -> 0 | F61: -
H62: =IF(ISBLANK(E62),"",IF(AND(OR(F62>=10,F62<=-10),OR((D62-E62)>=1000,(D62-E62)<=-1000)),IF(ISBLANK(G62),'|'!B$56,""),"")) -> 
B63: 5. Förderungen (Fd) | H63: =IF(ISBLANK(E63),"",IF(AND(OR(F63>=10,F63<=-10),OR((D63-E63)>=1000,(D63-E63)<=-1000)),IF(ISBLANK(G63),'|'!B$56,""),"")) -> 
A64: Einnahmen | B64: EU | F64: =IF(OR(D64=0,E64=0),"-",E64/D64*100-100) -> - | H64: =IF(ISBLANK(E64),"",IF(AND(OR(F64>=10,F64<=-10),OR((D64-E64)>=1000,(D64-E64)<=-1000)),IF(ISBLANK(G64),'|'!B$56,""),"")) -> 
B65: Bundesministerium, bitte jedes Ministerium einzeln anführen | F65: =IF(OR(D65=0,E65=0),"-",E65/D65*100-100) -> - | H65: =IF(ISBLANK(E65),"",IF(AND(OR(F65>=10,F65<=-10),OR((D65-E65)>=1000,(D65-E65)<=-1000)),IF(ISBLANK(G65),'|'!B$56,""),"")) -> 
B66: Stadt Wien (OHNE MA 13); bitte jede Magistratsabteilung einzeln anführen | F66: - | H66: =IF(ISBLANK(E66),"",IF(AND(OR(F66>=10,F66<=-10),OR((D66-E66)>=1000,(D66-E66)<=-1000)),IF(ISBLANK(G66),'|'!B$56,""),"")) -> 
B67: Bezirk, bitte den jeweiligen Bezirk anführen | F67: - | H67: =IF(ISBLANK(E67),"",IF(AND(OR(F67>=10,F67<=-10),OR((D67-E67)>=1000,(D67-E67)<=-1000)),IF(ISBLANK(G67),'|'!B$56,""),"")) -> 
B68: Sozialpartner | F68: - | H68: =IF(ISBLANK(E68),"",IF(AND(OR(F68>=10,F68<=-10),OR((D68-E68)>=1000,(D68-E68)<=-1000)),IF(ISBLANK(G68),'|'!B$56,""),"")) -> 
B69: Sonstige | F69: - | H69: =IF(ISBLANK(E69),"",IF(AND(OR(F69>=10,F69<=-10),OR((D69-E69)>=1000,(D69-E69)<=-1000)),IF(ISBLANK(G69),'|'!B$56,""),"")) -> 
F70: - | H70: =IF(ISBLANK(E70),"",IF(AND(OR(F70>=10,F70<=-10),OR((D70-E70)>=1000,(D70-E70)<=-1000)),IF(ISBLANK(G70),'|'!B$56,""),"")) -> 
F71: - | H71: =IF(ISBLANK(E71),"",IF(AND(OR(F71>=10,F71<=-10),OR((D71-E71)>=1000,(D71-E71)<=-1000)),IF(ISBLANK(G71),'|'!B$56,""),"")) -> 
F72: - | H72: =IF(ISBLANK(E72),"",IF(AND(OR(F72>=10,F72<=-10),OR((D72-E72)>=1000,(D72-E72)<=-1000)),IF(ISBLANK(G72),'|'!B$56,""),"")) -> 
B73: Förderung MA 13 | F73: - | H73: =IF(ISBLANK(E73),"",IF(AND(OR(F73>=10,F73<=-10),OR((D73-E73)>=1000,(D73-E73)<=-1000)),IF(ISBLANK(G73),'|'!B$56,""),"")) -> 
B74: Summe | C74: =SUM(C64:OFFSET(C74,-1,0)) -> 0 | D74: =SUM(D64:OFFSET(D74,-1,0)) -> 0 | E74: =SUM(E64:OFFSET(E74,-1,0)) -> 0 | F74: -
B76: 6. Gesamteinnahmen
B77: Summe | C77: =C61+C74 -> 0 | D77: =D61+D74 -> 0 | E77: =E61+E74 -> 0 | F77: =IF(OR(D79=0,E79=0),"-",E79/D79*100-100) -> -
B79: Differenz (Gesamteinnahmen - Gesamtausgaben) | C79: =C77-C48 -> 0 | D79: =D77-D48 -> 0 | E79: =E77-E48 -> 0 | F79: =IF(OR(D79=0,E79=0),"-",E79/D79*100-100) -> -
D97: Gesamtförderung | H97: <- Bitte Begründung angeben
D98: Einzeförderung

Sheet Personalübersicht (Fb)
I2: =Finanzbericht!$C$5 & " (Plan)" -> 2023 (Plan) | K2: ="Vergleich Plan/Ist " &Finanzbericht!$C$5 -> Vergleich Plan/Ist 2023
B3: Funktion | C3: höchste abgeschlossene Qualifikation | D3: Eintritt | F3: ="W-ST " &Finanzbericht!$C$5& " (Ist)" -> W-ST 2023 (Ist) | G3: Anstellungszeitraum im Förderjahr in Monaten | H3: ="Lohnkosten inkl. LNK " &Finanzbericht!$C$5& " (Ist)" -> Lohnkosten inkl. LNK 2023 (Ist) | I3: ="Lohnkosten inkl. LNK " &Finanzbericht!$C$5& " (Plan)" -> Lohnkosten inkl. LNK 2023 (Plan) | J3: ="W-ST " & Finanzbericht!$C$5 & " (Plan)" -> W-ST 2023 (Plan) | K3: in Euro | L3: in%
A4: Overhead | K4: =H4-I4 -> 0
K5: =H5-I5 -> 0
K6: 0
K7: 0
K8: 0
K9: 0
K10: 0
K11: 0
K12: 0
K13: 0
A14: Overhead SUMME | F14: =SUM(F4:F13) -> 0 | H14: =SUM(H4:H13) -> 0 | I14: =SUM(I4:I13) -> 0 | J14: =SUM(J4:J13) -> 0 | K14: =H14-I14 -> 0 | L14: =IF(OR(I14=0,H14=0),"-",H14/I14*100-100) -> -
A15: GESAMT
I17: =Finanzbericht!$C$5 & " (Plan)" -> 2023 (Plan) | K17: ="Vergleich Plan/Ist " &Finanzbericht!$C$5 -> Vergleich Plan/Ist 2023
B18: Funktion | C18: höchste abgeschlossene Qualifikation | D18: Angebot / Projekt | E18: Eintritt | F18: ="W-ST " &Finanzbericht!$C$5& " (Ist)" -> W-ST 2023 (Ist) | G18: Anstellungszeitraum im Förderjahr in Monaten | H18: ="Lohnkosten inkl. LNK " &Finanzbericht!$C$5& " (Ist)" -> Lohnkosten inkl. LNK 2023 (Ist) | I18: ="Lohnkosten inkl. LNK " &Finanzbericht!$C$5& " (Plan)" -> Lohnkosten inkl. LNK 2023 (Plan) | J18: ="W-ST " & Finanzbericht!$C$5 & " (Plan)" -> W-ST 2023 (Plan) | K18: in Euro | L18: in%
A19: Angebot / Projekt | K19: =H19-I19 -> 0
K20: =H20-I20 -> 0
K21: 0
K22: 0
K23: 0
K24: 0
K25: 0
K26: 0
K27: 0
K28: 0
K29: 0
K30: 0
K31: 0
K32: 0
K33: 0
K34: 0
K35: 0
K36: 0
K37: 0
K38: 0
K39: 0
K40: 0
K41: 0
K42: 0
K43: 0
K44: 0
K45: 0
K46: 0
K47: 0
K48: 0
K49: 0
K50: 0
K51: 0
K52: 0
K53: 0
K54: 0
A55: Angebot / Projekt SUMME | F55: =SUM(F19:F54) -> 0 | H55: =SUM(H19:H54) -> 0 | I55: =SUM(I19:I54) -> 0 | J55: =SUM(J19:J54) -> 0 | K55: =H55-I55 -> 0 | L55: =IF(OR(I55=0,H55=0),"-",H55/I55*100-100) -> -
